bitfinex-derivatives/quotes_BNBF0:USTF0_20260110
["timestamp","ask_amount","ask_price","bid_price","bid_amount"]
[1768038031242,0.19264463,903.93,902.25,0.83276042]
[1768038031642,0.19264463,903.93,902.24,0.83276042]
[1768038032244,0.19264463,903.93,902.23,0.83276042]
[1768038032542,0.19264463,903.93,902.24,0.83276042]
[1768038033050,0.19264463,903.93,902.23,0.83276042]
[1768038033448,0.19264463,903.93,902.24,0.83276042]
[1768038034044,0.19264463,903.93,902.23,0.83276042]
[1768038034445,0.19264463,903.93,902.24,0.83276042]
[1768038035348,2.75880273,904.15,902.24,0.83276042]
[1768038035548,0.19268676,903.51,902.24,0.83276042]
[1768038035851,2.75880273,904.15,902.24,0.83276042]
[1768038037053,0.19268676,903.68,902.24,0.83276042]
[1768038038352,0.19268676,903.68,902.25,0.83276042]
[1768038038555,0.19268676,903.68,902.27,0.83276042]
[1768038040959,0.19268676,903.68,902.32,0.83276042]
[1768038042660,0.19268676,903.68,902.37,0.83276042]
[1768038042860,0.19268676,903.68,902.39,0.83276042]
[1768038043560,0.19268676,903.68,902.32,0.83276042]
[1768038044164,0.19268676,903.68,902.31,0.83276042]
[1768038044361,0.19268676,903.68,902.32,0.83276042]
[1768038045060,0.19268676,903.68,902.31,0.83276042]
[1768038046660,0.19268676,903.68,902.4,0.83276042]
[1768038047264,0.19268676,903.68,902.39,0.83276042]
[1768038048061,0.19268676,903.68,902.38,0.83276042]
[1768038049265,0.19268676,903.68,902.37,0.83276042]
[1768038050160,0.19268676,903.68,902.36,0.83276042]
[1768038052062,0.19268676,903.68,902.35,0.83276042]
[1768038053267,0.19268676,903.68,902.34,0.83276042]
[1768038053665,0.19268676,903.68,902.18,5.30762841]
[1768038053666,0.19268676,903.68,902.37,0.83276042]
[1768038055564,0.19268676,903.68,902.35,0.83276042]
[1768038057169,0.19268676,903.68,902.34,0.83276042]
[1768038060071,0.19268676,903.68,902.35,0.83276042]
[1768038063571,0.19268676,903.68,902.33,0.83276042]
[1768038064082,0.19268676,903.68,902.34,0.83276042]
[1768038066080,0.19268676,903.68,902.36,0.83276042]
[1768038069193,0.19268676,903.68,902.37,0.83276042]
[1768038071094,0.19268676,903.68,902.38,0.83276042]
[1768038073096,0.19268676,903.68,902.39,0.83276042]
[1768038073598,0.19268676,903.68,902.44,0.83276042]
[1768038073995,0.19268676,903.68,902.18,4.19919555]
[1768038074695,0.19268676,903.68,902.44,0.82949304]
[1768038077096,0.19268676,903.68,902.45,0.82949304]
[1768038077801,0.19268676,903.68,902.44,0.82949304]
[1768038079201,0.19268676,903.68,902.45,0.82949304]
[1768038081400,0.19268676,903.68,902.46,0.82949304]
[1768038082203,0.19268676,903.68,902.47,0.82949304]
[1768038083200,0.19268676,903.68,902.48,0.82949304]
[1768038083700,0.19268676,903.68,902.46,0.82949304]
[1768038084306,0.19268676,903.68,902.47,0.82949304]
[1768038085205,0.19268676,903.68,902.48,0.82949304]
[1768038085906,0.19268676,903.68,902.48,0.77449304]
[1768038087202,0.19268676,903.68,902.33,1.10599073]
[1768038089210,0.19268676,903.68,902.18,4.19919555]
[1768038089211,0.19268676,903.68,902.34,1.10599073]
[1768038091413,0.19268676,903.68,902.35,1.10599073]
[1768038092407,0.19268676,903.68,902.35,4.10997012]
[1768038096413,0.19268676,903.68,902.35,5.21596085]
[1768038103618,0.19268676,903.68,902.35,4.10997012]
[1768038131345,0.19268676,903.68,902.35,5.21596085]
[1768038131543,0.19268676,903.68,902.43,1.10599073]
[1768038132239,0.19268676,903.68,902.42,1.10599073]
[1768038133243,0.19268676,903.68,902.41,1.10599073]
[1768038133739,0.19268676,903.68,902.42,1.10599073]
[1768038134544,0.19268676,903.68,902.47,1.10599073]
[1768038134741,0.19268676,903.68,902.51,1.10599073]
[1768038134945,0.19268676,903.68,902.54,1.10599073]
[1768038135245,0.19268676,903.68,902.53,1.10599073]
[1768038136345,0.19268676,903.68,902.51,1.10599073]
[1768038136545,0.19268676,903.68,902.5,1.10599073]
[1768038137144,0.19268676,903.68,902.49,1.10599073]
[1768038137344,0.19268676,903.68,902.48,1.10599073]
[1768038137645,0.19268676,903.68,902.56,1.10599073]
[1768038138146,0.19268676,903.68,902.59,1.10599073]
[1768038138446,0.19268676,903.68,902.57,1.10599073]
[1768038139244,0.19268676,903.68,902.56,1.10599073]
[1768038140249,0.19268676,903.68,902.6,1.10599073]
[1768038140543,0.19268676,903.68,902.62,1.10599073]
[1768038141243,0.19268676,903.68,902.6,1.10599073]
[1768038142248,0.19268676,903.68,902.59,1.10599073]
[1768038143244,0.19268676,903.68,902.58,1.10599073]
[1768038143644,0.19268676,903.68,902.6,1.10599073]
[1768038144246,0.19268676,903.68,902.57,1.10599073]
[1768038145348,0.19268676,903.68,902.56,1.10599073]
[1768038145948,0.19268676,903.68,902.73,0.82652923]
[1768038146145,0.19268676,903.68,902.72,0.82652923]
[1768038147144,0.19268676,903.68,902.71,0.82652923]
[1768038147845,0.19268676,903.68,902.68,0.82652923]
[1768038148050,0.19268676,903.68,902.55,0.82652923]
[1768038148749,0.19268676,903.68,902.54,0.82652923]
[1768038150245,0.19268676,903.68,902.53,0.82652923]
[1768038156246,0.19268676,903.68,902.54,0.82652923]
[1768038157451,0.19268676,903.68,902.56,0.82652923]
[1768038160148,0.19268676,903.68,902.57,0.82652923]
[1768038161551,0.19268676,903.68,902.55,0.82652923]
[1768038162151,0.19268676,903.68,902.51,0.82652923]
[1768038162352,0.19268676,903.68,902.5,0.82652923]
[1768038162856,0.19268676,903.68,902.46,0.82652923]
[1768038163155,0.19268676,903.68,902.47,0.82652923]
[1768038163355,0.19268676,903.68,902.45,0.82652923]
[1768038164053,0.19268676,903.68,902.45,0.8271177]
[1768038164256,0.19268676,903.68,902.46,0.8271177]
[1768038167158,0.19268676,903.68,902.47,0.8271177]
[1768038167658,0.19268676,903.68,902.46,0.8271177]
[1768038167858,0.19268676,903.68,902.4,0.8271177]
[1768038169261,0.19268676,903.68,902.41,0.8271177]
[1768038170365,0.19268676,903.68,902.42,0.8271177]
[1768038172262,0.19268676,903.68,902.43,0.8271177]
[1768038172666,0.19268676,903.68,902.44,0.8271177]
[1768038173367,0.19268676,903.68,902.45,0.8271177]
[1768038173864,0.19268676,903.68,902.53,0.8271177]
[1768038176269,0.19268676,903.68,902.54,0.8271177]
[1768038181272,0.19268676,903.68,902.53,0.8271177]
[1768038181471,0.19268676,903.68,902.52,0.8271177]
[1768038182174,0.19268676,903.68,902.51,0.8271177]
[1768038182378,0.19268676,903.68,902.52,0.8271177]
[1768038187174,0.19268676,903.68,902.53,0.8271177]
[1768038188280,0.19268676,903.68,902.54,0.8271177]
[1768038190175,0.19268676,903.68,902.55,0.8271177]
[1768038191276,0.19268676,903.68,902.53,0.8271177]
[1768038191480,0.19268676,903.68,902.51,0.8271177]
[1768038192381,0.19268676,903.68,902.52,0.8271177]
[1768038194282,0.19268676,903.68,902.43,0.8271177]
[1768038194778,0.19268676,903.68,902.45,0.8271177]
[1768038196183,0.19268676,903.68,902.44,0.8271177]
[1768038196883,0.19268676,903.68,902.41,0.8271177]
[1768038198386,0.19268676,903.68,902.4,0.8271177]
[1768038202690,0.19268676,903.68,902.38,0.8271177]
[1768038203289,0.19268676,903.68,902.39,0.8271177]
[1768038203790,0.19268676,903.68,902.37,0.8271177]
[1768038204293,0.19268676,903.68,902.38,0.8271177]
[1768038210994,0.19268676,903.68,902.4,0.8271177]
[1768038211298,0.19268676,903.68,902.35,4.10997012]
[1768038213699,0.19268676,903.68,902.24,0.8271177]
[1768038214298,0.19268676,903.68,902.23,0.8271177]
[1768038215295,0.19268676,903.68,902.22,0.8271177]
[1768038216298,0.19268676,903.68,902.18,0.8271177]
[1768038218199,0.19268676,903.68,902.17,0.8271177]
[1768038219002,0.19268676,903.68,902.13,0.8271177]
[1768038219202,0.19268676,903.68,902.12,0.8271177]
[1768038221399,0.19268676,903.68,902.11,0.8271177]
[1768038224308,0.19268676,903.68,902.1,0.8271177]
[1768038229910,0.19268676,903.68,901.94,1.10599073]
[1768038229911,0.19268676,903.68,902.04,0.8271177]
[1768038230409,0.19268676,903.68,901.23,0.01350158]
[1768038230410,0.19268676,903.68,902.02,0.8271177]
[1768038231312,0.19268676,903.68,902.01,0.8271177]
[1768038232812,0.19268676,903.68,901.98,0.8271177]
[1768038235512,0.19268676,903.68,901.96,0.8271177]
[1768038236514,0.19268676,903.68,901.95,0.8271177]
[1768038237114,2.754127,904.02,901.95,0.8271177]
[1768038237320,0.19272304,903.25,901.95,0.8271177]
[1768038237521,2.754127,904.02,901.95,0.8271177]
[1768038237718,2.754127,904.02,901.92,0.8271177]
[1768038237922,0.19272304,902.93,901.92,0.8271177]
[1768038238223,2.754127,903.99,901.92,0.8271177]
[1768038238418,0.19272464,902.9,901.92,0.8271177]
[1768038238622,2.754127,903.99,901.92,0.8271177]
[1768038238922,0.19272625,902.9,901.92,0.8271177]
[1768038239217,2.754127,903.99,901.92,0.8271177]
[1768038239421,0.19272625,902.9,901.92,0.8271177]
[1768038239717,2.754127,903.99,901.92,0.8271177]
[1768038239918,0.19272625,902.9,901.92,0.8271177]
[1768038240224,2.754127,904.0,901.92,0.8271177]
[1768038240422,0.19272625,902.9,901.92,0.8271177]
[1768038240727,2.754127,904.01,901.94,0.8271177]
[1768038241019,0.19272571,902.9,901.94,0.8271177]
[1768038241219,2.754127,904.01,901.94,4.96040007]
[1768038241519,0.19272411,902.9,901.94,4.96040007]
[1768038241724,2.754127,904.01,901.94,4.96040007]
[1768038242025,0.19272411,902.9,901.94,4.96040007]
[1768038242326,2.754127,904.01,901.94,4.96040007]
[1768038242526,0.19272411,902.9,901.94,4.96040007]
[1768038242826,2.754127,904.01,901.94,4.96040007]
[1768038243127,0.19272411,902.9,901.94,4.96040007]
[1768038243329,2.754127,904.01,901.94,4.96040007]
[1768038243623,0.19272411,902.9,901.94,4.96040007]
[1768038243828,2.754127,904.02,901.94,4.96040007]
[1768038244124,0.19272358,902.9,901.94,4.96040007]
[1768038246427,0.19272358,902.9,901.98,0.8271177]
[1768038249328,0.19272358,902.9,901.94,4.13328237]
[1768038249329,0.19272358,902.9,901.99,0.8271177]
[1768038250831,0.19272358,902.9,901.96,0.8271177]
[1768038252430,0.19272358,902.9,901.95,0.8271177]
[1768038254238,0.19272358,902.9,901.96,0.8271177]
[1768038255239,0.19272358,902.9,901.97,0.8271177]
[1768038256340,0.19272358,902.9,901.98,0.8271177]
[1768038256742,0.19272358,902.9,901.94,4.13328237]
[1768038319093,0.19272358,902.9,901.39,0.829538]
[1768038320392,0.19272358,902.9,901.21,0.829538]
[1768038322493,0.19272358,902.9,901.2,0.829538]
[1768038322697,0.19272358,902.9,901.14,0.829538]
[1768038322897,0.19272358,902.9,901.12,0.829538]
[1768038323595,0.19272358,902.9,901.11,0.829538]
[1768038323798,0.19272358,902.9,901.15,0.829538]
[1768038324195,0.19272358,902.9,901.15,5.0615303]
[1768038324400,0.19272358,902.9,901.15,4.2319923]
[1768038324800,0.19272358,902.9,901.15,5.0615303]
[1768038325001,0.19272358,902.9,901.33,0.829538]
[1768038325199,0.19272358,902.9,901.15,4.2319923]
[1768038325200,0.19272358,902.9,901.34,0.829538]
[1768038325394,0.19272358,902.9,901.35,0.829538]
[1768038327299,0.19272358,902.9,901.36,0.829538]
[1768038329404,0.19272358,902.9,901.37,0.829538]
[1768038331307,0.19272358,902.9,901.38,0.829538]
[1768038332407,0.19272358,902.9,901.22,1.10599073]
[1768038332408,0.19272358,902.9,901.39,0.829538]
[1768038333310,0.19272358,902.9,901.4,0.829538]
[1768038333708,0.19272358,902.9,901.41,0.829538]
[1768038334509,0.19272358,902.9,901.42,0.829538]
[1768038335313,0.19272358,902.9,901.43,0.829538]
[1768038337410,0.19272358,902.9,901.41,0.829538]
[1768038340413,0.19272358,902.9,901.42,0.829538]
[1768038343622,0.19272358,902.9,901.34,0.829538]
[1768038349626,0.19272358,902.9,901.32,0.829538]
[1768038351330,0.19272358,902.9,901.33,0.829538]
[1768038353727,0.19272358,902.9,901.39,0.829538]
[1768038354036,0.19272358,902.9,901.23,1.10599073]
[1768038354037,0.19272358,902.9,901.35,0.829538]
[1768038356536,0.19272358,902.9,901.22,0.829538]
[1768038357337,0.19272358,902.9,901.21,0.829538]
[1768038357633,0.19272358,902.9,901.19,0.829538]
[1768038357832,0.19272358,902.9,901.18,0.829538]
[1768038358037,0.19272358,902.9,901.17,0.829538]
[1768038358337,0.19272358,902.9,901.15,4.2319923]
[1768038389763,2.754127,902.88,901.15,4.2319923]
[1768038391761,2.754127,902.87,901.15,4.2319923]
[1768038393866,0.19272358,902.9,901.15,4.2319923]
[1768038398364,0.19272358,902.9,901.15,5.06191446]
[1768038399270,0.19272358,902.9,901.15,4.2319923]
[1768038400371,0.19272358,902.9,901.15,5.06191446]
[1768038401368,0.19272358,902.9,901.16,0.82992216]
[1768038403772,0.19272358,902.9,901.17,0.82992216]
[1768038405178,0.19272358,902.9,901.16,0.82992216]
[1768038408078,0.19272358,902.9,901.18,0.82992216]
[1768038410174,0.19272358,902.9,901.17,0.82992216]
[1768038412181,0.19272358,902.9,901.21,0.82992216]
[1768038412378,0.19272358,902.9,901.22,0.82992216]
[1768038413781,0.19272358,902.9,901.23,0.82992216]
[1768038415285,0.19272358,902.9,901.22,0.82992216]
[1768038419184,0.19272358,902.9,901.21,0.82992216]
[1768038423789,0.19272358,902.9,901.22,0.82992216]
[1768038430690,0.19272358,902.9,901.2,0.82992216]
[1768038432194,0.19272358,902.9,901.21,0.82992216]
[1768038433699,0.19272358,902.9,901.15,5.06191446]
[1768038435198,0.19272358,902.9,901.16,0.82992216]
[1768038437201,0.19272358,902.9,901.17,0.82992216]
[1768038438399,0.19272358,902.9,901.18,0.82992216]
[1768038439202,0.19272358,902.9,901.19,0.82992216]
[1768038440101,0.19272358,902.9,901.15,4.2319923]
[1768038441601,2.94685058,902.9,901.15,4.2319923]
[1768038442400,0.19272358,902.9,901.15,4.2319923]
[1768038443702,0.19272358,902.9,901.19,0.82992216]
[1768038444700,2.754127,903.0,901.19,0.82992216]
[1768038445000,0.19291749,902.48,901.19,0.82992216]
[1768038446404,0.19291749,902.48,901.19,5.05146927]
[1768038447305,0.19291749,902.48,901.19,4.22154711]
[1768038453718,0.19291749,902.48,901.21,0.82992216]
[1768038457221,0.19291749,902.48,901.2,0.82992216]
[1768038458736,0.19291749,902.48,901.23,0.82992216]
[1768038458947,0.19291749,902.48,901.45,0.82992216]
[1768038459435,0.19291749,902.48,901.5,0.82992216]
[1768038459930,0.19291749,902.48,901.52,0.82992216]
[1768038460328,0.19291749,902.48,901.51,0.82992216]
[1768038460728,0.19291749,902.48,901.55,0.82992216]
[1768038461231,0.19291749,902.48,901.54,0.82992216]
[1768038462331,0.19291749,902.48,901.52,0.82992216]
[1768038463127,0.19291749,902.48,901.51,0.82992216]
[1768038463538,0.19291749,902.48,901.5,0.82992216]
[1768038464233,0.19291749,902.48,901.49,0.82992216]
[1768038465434,0.19291749,902.48,901.5,0.82992216]
[1768038466235,0.19291749,902.48,901.49,0.82992216]
[1768038467131,0.19291749,902.48,901.48,0.82992216]
[1768038468638,0.19291749,902.48,901.21,0.82992216]
[1768038468838,0.19291749,902.48,901.19,5.05146927]
[1768038480543,0.19291749,902.48,901.29,0.82992216]
[1768038480743,0.19291749,902.48,901.3,0.71220952]
[1768038480944,0.19291749,902.48,901.31,0.71220952]
[1768038481144,0.19291749,902.48,901.32,0.71220952]
[1768038481343,0.19291749,902.48,901.33,0.71220952]
[1768038481540,0.19291749,902.48,901.34,0.71220952]
[1768038481744,0.19291749,902.48,901.35,0.71220952]
[1768038481944,0.19291749,902.48,901.36,0.71220952]
[1768038482142,0.19291749,902.48,901.37,0.71220952]
[1768038482342,0.19291749,902.48,901.38,0.71220952]
[1768038482545,0.19291749,902.48,901.39,0.71220952]
[1768038482846,0.19291749,902.48,901.4,0.71220952]
[1768038483045,0.19291749,902.48,901.41,0.71220952]
[1768038483248,0.19291749,902.48,901.42,0.71220952]
[1768038483443,0.19291749,902.48,901.43,0.71220952]
[1768038483647,0.19291749,902.48,901.19,4.22154711]
[1768038483847,0.19291749,902.48,901.2,0.71237959]
[1768038484047,0.19291749,902.48,901.21,0.71237959]
[1768038484247,0.19291749,902.48,901.22,0.71237959]
[1768038484546,0.19291749,902.48,901.23,0.71237959]
[1768038484742,0.19291749,902.48,901.24,0.71237959]
[1768038485042,0.19291749,902.48,901.25,0.71237959]
[1768038485247,0.19291749,902.48,901.19,4.22154711]
[1768038485449,0.19291749,902.48,901.2,0.71200253]
[1768038485744,0.19291749,902.48,901.21,0.71200253]
[1768038485948,0.19291749,902.48,901.22,0.71200253]
[1768038486144,0.19291749,902.48,901.19,4.22154711]
[1768038486447,0.19291749,902.48,901.2,0.71197253]
[1768038486649,0.19291749,902.48,901.21,0.71197253]
[1768038486845,0.19291749,902.48,901.19,4.22154711]
[1768038487050,0.19291749,902.48,901.2,0.71179382]
[1768038487250,0.19291749,902.48,901.19,4.22154711]
[1768038487450,0.19291749,902.48,901.2,0.71160105]
[1768038487747,0.19291749,902.48,901.19,4.22154711]
[1768038487952,0.19291749,902.48,901.2,0.71160098]
[1768038488151,0.19291749,902.48,901.21,0.71155019]
[1768038488353,0.19291749,902.48,901.19,4.22154711]
[1768038488647,0.19291749,902.48,901.2,0.71142894]
[1768038488847,0.19291749,902.48,901.21,0.71142894]
[1768038489049,0.19291749,902.48,901.19,4.22154711]
[1768038489253,0.19291749,902.48,901.2,0.71138628]
[1768038489548,0.19291749,902.48,901.19,4.22154711]
[1768038489852,0.19291749,902.48,901.2,0.71127861]
[1768038490149,0.19291749,902.48,901.19,4.22154711]
[1768038495053,0.19291749,902.48,900.6,0.82992216]
[1768038495254,0.19291749,902.48,900.61,0.71073366]
[1768038495453,0.19291749,902.48,900.62,0.71073366]
[1768038495655,0.19291749,902.48,900.63,0.71073366]
[1768038495854,0.19291749,902.48,900.64,0.71073366]
[1768038496154,0.19291749,902.48,900.65,0.71073366]
[1768038496354,0.19291749,902.48,900.66,0.71073366]
[1768038496558,0.19291749,902.48,900.67,0.71073366]
[1768038496753,0.19291749,902.48,900.68,0.71073366]
[1768038497058,0.19291749,902.48,900.69,0.71073366]
[1768038497259,0.19291749,902.48,900.7,0.71073366]
[1768038497458,0.19291749,902.48,900.55,4.21190181]
[1768038497459,0.19291749,902.48,900.71,0.71073366]
[1768038497754,0.19291749,902.48,900.72,0.71073366]
[1768038497963,0.19291749,902.48,900.73,0.71073366]
[1768038498163,0.19291749,902.48,900.74,0.71073366]
[1768038498458,0.19291749,902.48,900.75,0.71073366]
[1768038498658,0.19291749,902.48,900.76,0.71073366]
[1768038498859,0.19291749,902.48,900.77,0.71073366]
[1768038499163,0.19291749,902.48,900.78,0.71073366]
[1768038499359,0.19291749,902.48,900.79,0.71073366]
[1768038499560,0.19291749,902.48,900.8,0.71073366]
[1768038499764,0.19291749,902.48,900.81,0.71073366]
[1768038499961,0.19291749,902.48,900.55,4.21190181]
[1768038500162,0.19291749,902.48,900.56,0.70936081]
[1768038500364,0.19291749,902.48,900.57,0.70936081]
[1768038500562,0.19291749,902.48,900.58,0.70936081]
[1768038500865,0.19291749,902.48,900.59,0.70936081]
[1768038501162,0.19291749,902.48,900.6,0.70936081]
[1768038501364,0.19291749,902.48,900.61,0.70936081]
[1768038501564,0.19291749,902.48,900.62,0.70936081]
[1768038501763,0.19291749,902.48,900.63,0.70936081]
[1768038501967,0.19291749,902.48,900.64,0.70936081]
[1768038502164,0.19291749,902.48,900.65,0.70936081]
[1768038502362,0.19291749,902.48,900.66,0.70936081]
[1768038502566,0.19291749,902.48,900.67,0.70936081]
[1768038502862,0.19291749,902.48,900.68,0.70936081]
[1768038503068,0.19291749,902.48,900.69,0.70936081]
[1768038503366,0.19291749,902.48,900.7,0.70936081]
[1768038503567,0.19291749,902.48,900.71,0.70936081]
[1768038503764,0.19291749,902.48,900.72,0.70936081]
[1768038503969,0.19291749,902.48,900.73,0.70936081]
[1768038504177,0.19291749,902.48,900.74,0.70936081]
[1768038504470,0.19291749,902.48,900.75,0.70936081]
[1768038504669,0.19291749,902.48,900.76,0.70936081]
[1768038504870,0.19291749,902.48,900.77,0.70936081]
[1768038505069,0.19291749,902.48,900.78,0.70936081]
[1768038505268,0.19291749,902.48,900.79,0.70936081]
[1768038505565,0.19291749,902.48,900.8,0.70936081]
[1768038505770,0.19291749,902.48,900.81,0.70936081]
[1768038506070,0.19291749,902.48,900.82,0.70936081]
[1768038506374,0.19291749,902.48,900.83,0.70936081]
[1768038506670,0.19291749,902.48,900.84,0.70936081]
[1768038506866,0.19291749,902.48,900.85,0.70936081]
[1768038507068,0.19291749,902.48,900.56,0.82992216]
[1768038507270,0.19291749,902.48,900.57,1.53870444]
[1768038507471,0.19291749,902.48,900.58,0.70878228]
[1768038507766,0.19291749,902.48,900.59,0.70878228]
[1768038507969,0.19291749,902.48,900.6,0.70878228]
[1768038508270,0.19291749,902.48,900.61,0.70878228]
[1768038508467,0.19291749,902.48,900.62,0.70878228]
[1768038508672,0.19291749,902.48,900.63,0.70878228]
[1768038508971,0.19291749,902.48,900.64,0.70878228]
[1768038509271,0.19291749,902.48,900.65,0.70878228]
[1768038509471,0.19291749,902.48,900.66,0.70878228]
[1768038509668,0.19291749,902.48,900.67,0.70878228]
[1768038509870,0.19291749,902.48,900.68,0.70878228]
[1768038510172,0.19291749,902.48,900.69,0.70878228]
[1768038510473,0.19291749,902.48,900.55,4.21190181]
[1768038510671,0.19291749,902.48,900.56,0.69487068]
[1768038510871,0.19291749,902.48,900.57,0.69487068]
[1768038511072,0.19291749,902.48,900.55,4.21190181]
[1768038511272,0.19291749,902.48,900.56,0.69517078]
[1768038511473,0.19291749,902.48,900.55,4.21190181]
[1768038520578,0.19291749,902.48,900.56,0.69428219]
[1768038520781,0.19291749,902.48,900.57,0.69428219]
[1768038520981,0.19291749,902.48,900.58,0.69428219]
[1768038521281,0.19291749,902.48,900.59,0.69428219]
[1768038521484,0.19291749,902.48,900.6,0.69428219]
[1768038521679,0.19291749,902.48,900.61,0.69428219]
[1768038521982,0.19291749,902.48,900.62,0.69428219]
[1768038522282,0.19291749,902.48,900.63,0.69428219]
[1768038522480,0.19291749,902.48,900.64,0.69428219]
[1768038522692,0.19291749,902.48,900.65,0.69428219]
[1768038522881,0.19291749,902.48,900.66,0.69428219]
[1768038523079,0.19291749,902.48,900.67,0.69428219]
[1768038523282,0.19291749,902.48,900.68,0.69428219]
[1768038523479,0.19291749,902.48,900.69,0.69428219]
[1768038523787,0.19291749,902.48,900.55,4.21190181]
[1768038527286,0.19291749,902.48,900.56,0.6959901]
[1768038527594,0.19291749,902.48,900.55,4.21190181]
[1768038527784,0.19291749,902.48,900.56,0.6959901]
[1768038527987,0.19291749,902.48,900.57,0.6959901]
[1768038528186,0.19291749,902.48,900.58,0.6959901]
[1768038528390,0.19291749,902.48,900.59,0.6959901]
[1768038528590,0.19291749,902.48,900.6,0.6959901]
[1768038528795,0.19291749,902.48,900.61,0.6959901]
[1768038528992,0.19291749,902.48,900.62,0.6959901]
[1768038529187,0.19291749,902.48,900.63,0.6959901]
[1768038529396,0.19291749,902.48,900.64,0.6959901]
[1768038529595,0.19291749,902.48,900.65,0.6959901]
[1768038529891,0.19291749,902.48,900.66,0.6959901]
[1768038530086,0.19291749,902.48,900.67,0.6959901]
[1768038530285,0.19291749,902.48,900.55,4.21190181]
[1768038530490,0.19291749,902.48,900.56,0.69660539]
[1768038530687,0.19291749,902.48,900.57,0.69660539]
[1768038530894,0.19291749,902.48,900.58,0.69660539]
[1768038531087,0.19291749,902.48,900.59,0.69660539]
[1768038531294,0.19291749,902.48,900.6,0.69660539]
[1768038531595,0.19291749,902.48,900.61,0.69660539]
[1768038531796,0.19291749,902.48,900.62,0.69660539]
[1768038531992,0.19291749,902.48,900.63,0.69660539]
[1768038532295,0.19291749,902.48,900.64,0.69660539]
[1768038532504,0.19291749,902.48,900.65,0.69660539]
[1768038532794,0.19291749,902.48,900.66,0.69660539]
[1768038532988,0.19291749,902.48,900.67,0.69660539]
[1768038533193,0.19291749,902.48,900.55,4.21190181]
[1768038533392,0.19291749,902.48,900.56,0.696911]
[1768038533593,0.19291749,902.48,900.57,0.696911]
[1768038533793,0.19291749,902.48,900.58,0.696911]
[1768038534000,0.19291749,902.48,900.59,0.696911]
[1768038534202,0.19291749,902.48,900.6,0.696911]
[1768038534389,0.19291749,902.48,900.61,0.696911]
[1768038534589,0.19291749,902.48,900.62,0.696911]
[1768038534795,0.19291749,902.48,900.63,0.696911]
[1768038534988,0.19291749,902.48,900.64,0.696911]
[1768038535193,0.19291749,902.48,900.65,0.696911]
[1768038535502,0.19291749,902.48,900.66,0.696911]
[1768038535690,0.19291749,902.48,900.67,0.696911]
[1768038535891,0.19291749,902.48,900.68,0.696911]
[1768038536088,0.19291749,902.48,900.69,0.696911]
[1768038536293,0.19291749,902.48,900.55,4.21190181]
[1768038536591,0.19291749,902.48,900.56,0.69750563]
[1768038536790,0.19291749,902.48,900.57,0.69750563]
[1768038537090,0.19291749,902.48,900.58,0.69750563]
[1768038537293,0.19291749,902.48,900.59,0.69750563]
[1768038537495,0.19291749,902.48,900.6,0.69750563]
[1768038537696,0.19291749,902.48,900.61,0.69750563]
[1768038537894,0.19291749,902.48,900.62,0.69750563]
[1768038538093,0.19291749,902.48,900.63,0.69750563]
[1768038538292,0.19291749,902.48,900.64,0.69750563]
[1768038538493,0.19291749,902.48,900.65,0.69750563]
[1768038538795,0.19291749,902.48,900.66,0.69750563]
[1768038538995,0.19291749,902.48,900.67,0.69750563]
[1768038539194,0.19291749,902.48,900.68,0.69750563]
[1768038539392,2.94704449,902.48,900.69,0.69750563]
[1768038539593,2.94704449,902.48,900.55,4.21190181]
[1768038539796,2.94704449,902.48,900.56,0.69810347]
[1768038539992,2.94704449,902.48,900.57,0.69810347]
[1768038540194,2.94704449,902.48,900.58,0.69810347]
[1768038540394,2.94704449,902.48,900.59,0.69810347]
[1768038540603,2.94704449,902.48,900.6,0.69810347]
[1768038540792,2.94704449,902.48,900.61,0.69810347]
[1768038540993,2.754127,902.45,900.62,0.69810347]
[1768038541204,2.754127,902.45,900.63,0.69810347]
[1768038541498,2.754127,902.44,900.64,0.69810347]
[1768038541699,2.754127,902.44,900.65,0.69810347]
[1768038541897,2.754127,902.44,900.66,0.69810347]
[1768038542098,2.754127,902.44,900.55,4.21190181]
[1768038542294,2.754127,902.44,900.56,0.69480693]
[1768038542596,2.754127,902.43,900.57,0.69480693]
[1768038542798,2.754127,902.43,900.58,0.69480693]
[1768038542999,2.754127,902.43,900.59,0.69480693]
[1768038543196,2.754127,902.38,900.6,0.69480693]
[1768038543395,2.754127,902.38,900.19,0.82992216]
[1768038543598,2.754127,902.38,899.22,2.76497683]
[1768038543599,2.754127,902.11,900.2,0.69502665]
[1768038543798,2.754127,902.11,900.21,0.69502665]
[1768038543998,2.754127,902.11,900.22,0.69502665]
[1768038544198,2.754127,902.12,900.23,0.69502665]
[1768038544503,2.754127,902.12,900.24,0.69502665]
[1768038544702,2.754127,902.12,899.31,0.00938954]
[1768038544703,2.754127,902.14,900.25,0.69502665]
[1768038544998,2.754127,902.14,900.26,0.69502665]
[1768038545202,2.754127,902.18,900.27,0.69502665]
[1768038545402,2.754127,902.18,900.28,0.69502665]
[1768038545603,2.754127,902.18,900.29,0.69502665]
[1768038545803,2.754127,902.18,900.3,0.69502665]
[1768038546108,2.754127,902.18,900.31,0.69502665]
[1768038546405,2.754127,902.18,900.32,0.69502665]
[1768038546608,2.754127,902.18,900.33,0.69502665]